Cogmind - Beta 12 X6 @@@ ROGUE MODE // 2023.02.23 @ 18:45:34 Player: maxwell Result: Self-destructed Performance ------------- Evolutions (3) 1500 Regions Visited (7) 1400 Robots Destroyed (133) 665 Value Destroyed (4697) 4697 Prototype IDs (12) 240 Alien Tech Used (0) 0 Bonus (1404) 1404 TOTAL SCORE: 9906 Bonus ------- High Alert Combat Kills 1276 Follower Combat Kills 190 Friendly Fire -62 Cogmind --------- Core Integrity 9/700 Matter 152/300 Energy 490/490 System Corruption 8% Temperature Cool (0) Movement Rolling (160) Ox4 Location -7/Lower Caves Parts ------- > --- POWER (2) -------- Reinforced Deuterium Engine Enhanced Nuclear Core > --- PROPULSION (2) --- Armored Huge Wheel > --- UTILITY (7) ------ Coolant Injector Huge Storage Unit Experimental Sensor Array Improved Signal Interpreter Launcher Guidance Computer Improved Propulsion Shielding Improved Propulsion Shielding > --- WEAPON (2) ------- Arc Projector Arc Projector > --- INVENTORY (25) --- Coolant Injector Coolant Injector Coolant Injector Large Storage Unit Machine Analyzer Improved Propulsion Shielding Hardened Heavy Armor Plating Layered Light Armor Plating Improved Trap Extractor (0/6) Bomb Drone Bay (16/16) Arc Projector Arc Projector Precision Beam Rifle Gatling Laser Gatling Laser Cooled Pulse Rifle Improved EM Pulse Cannon Improved Grenade Launcher Missile Launcher Precision Grenade Launcher Power Maul Peak State ------------ > --- POWER ------------ Improved Deuterium Engine Reinforced Deuterium Engine > --- PROPULSION ------- Armored Huge Wheel > --- UTILITY ---------- Coolant Injector Huge Storage Unit Experimental Sensor Array Improved Signal Interpreter Launcher Guidance Computer Improved Propulsion Shielding Improved Light Armor Plating > --- WEAPON ----------- Gatling Laser Cooled Pulse Rifle > --- INVENTORY -------- Coolant Injector Coolant Injector Coolant Injector Large Storage Unit Machine Analyzer Improved Propulsion Shielding Improved Propulsion Shielding Hardened Heavy Armor Plating Improved Trap Extractor Bomb Drone Bay Arc Projector Arc Projector Arc Projector Arc Projector Arc Projector Precision Beam Rifle Gatling Laser Improved EM Pulse Cannon Improved Grenade Launcher Missile Launcher Heavy Missile Launcher Power Maul [Rating: 61] Favorites ----------- Power Improved Deuterium Engine Engine Improved Deuterium Engine Power Core Enhanced Nuclear Core Propulsion Light Treads Treads Light Treads Wheel Wheel Utility Hardened Medium Armor Plating Device Experimental Sensor Array Storage Huge Storage Unit Processor Improved Targeting Computer Protection Hardened Medium Armor Plating Weapon Assault Rifle Energy Gun Heavy Laser Energy Cannon EM Pulse Cannon Ballistic Gun Assault Rifle Launcher Grenade Launcher Impact Weapon Makeshift Hammer Build | -11 -10 -10 -10 -9 -8 -7 -7 ------- Run | Jun Mat Min Exi Min Mat Fac Low Slots Evolved 6 | . . . . . 4 2 . Power 1 | . . . . . . 1 . Propulsion . | . . . . . . . . Utility 5 | . . . . . 4 1 . Weapon . | . . . . . . . . Parts Attached 179 | 6 16 4 . 12 45 95 1 Power 18 | 1 2 . . 1 3 11 . Engine 15 | 1 2 . . 1 3 8 . Core 3 | . . . . . . 3 . Reactor . | . . . . . . . . Propulsion 20 | 2 5 . . 4 4 5 . Treads 9 | 2 3 . . 2 2 . . Leg . | . . . . . . . . Wheel 11 | . 2 . . 2 2 5 . Hover . | . . . . . . . . Flight . | . . . . . . . . Utility 65 | 1 5 2 . 1 21 34 1 Device 28 | . . 1 . . 7 19 1 Storage 5 | 1 2 . . . 2 . . Processor 3 | . . . . . 2 1 . Hackware . | . . . . . . . . Protection 29 | . 3 1 . 1 10 14 . Artifact . | . . . . . . . . Weapon 76 | 2 4 2 . 6 17 45 . Energy Gun 44 | 1 2 . . . 11 30 . Energy Cannon 1 | . . . . . 1 . . Ballistic Gun 9 | 1 2 1 . 3 2 . . Ballistic Cannon . | . . . . . . . . Launcher 16 | . . 1 . 3 3 9 . Special Weapon . | . . . . . . . . Impact Weapon 6 | . . . . . . 6 . Slashing Weapon . | . . . . . . . . Piercing Weapon . | . . . . . . . . Special Melee Weapon . | . . . . . . . . Unidentified Prototypes 12 | . . 1 . . 6 5 . Parts Lost 44 | . 5 . . 3 5 31 . Power 11 | . 1 . . 1 . 9 . Propulsion 8 | . 2 . . 1 1 4 . Utility 14 | . 1 . . . 2 11 . Weapon 11 | . 1 . . 1 2 7 . Highest Loss Streak 5 | . 2 . . 1 2 5 . To Critical Strikes 1 | . . . . . 1 . . Average Slot Usage (%) 95 | . 95 100 100 90 98 95 86 Engine 12 | . 14 14 14 13 9 12 7 Treads 9 | . 26 28 28 21 6 . . Wheel 8 | . 1 . . 2 10 12 7 Device 6 | . . . . . 8 10 9 Storage 9 | . 14 14 14 14 9 7 7 Processor 9 | . . . . . 10 15 15 Protection 17 | . 11 14 14 12 24 17 15 Energy Gun 9 | . 8 . . . 15 11 15 Ballistic Gun 6 | . 18 27 28 13 1 . . Launcher 1 | . . . . 9 . . . Naked Turns . | . . . . . . . . Heaviest Build 129 | 13 29 29 28 33 115 129 117 Greatest Support 40 | 40 40 40 40 40 40 28 28 Greatest Overweight (x) 11 | 3 1 . . 8 6 11 4 Average Overweight (x) 2 | . . . . . 3 5 4 Largest Inventory Capacity 35 | 8 15 15 15 15 35 25 25 Average Capacity 20 | 7 12 15 15 15 20 25 25 Most Carried 25 | 4 11 14 15 15 21 25 24 Average Carried 16 | 1 6 12 14 14 15 20 23 Final Capacity 25 | 8 15 15 15 15 25 25 25 Final Carried 24 | 4 11 14 15 15 20 24 23 Class Distribution -------------------- 71% | Mutant 28% | Scavenger-Mutant Dominant Class ---------------- Mutant | -10/Materials Mutant | -10/Mines Mutant | -10/Exiles Scavenger-Mutant | -9/Mines Mutant | -8/Materials Mutant | -7/Factory Mutant | -7/Lower Caves Resources | -11 -10 -10 -10 -9 -8 -7 -7 ----------- Run | Jun Mat Min Exi Min Mat Fac Low Matter Collected 2846 | 88 423 159 . 232 636 1247 61 Remotely . | . . . . . . . . Salvage Created 4262 | . 508 126 . 183 889 2556 . Parts 245 | . 27 4 . 29 56 129 . Haulers Intercepted . | . . . . . . . . Recyclers Shooed 3 | . . . . 2 . 1 . Parts Field Recycled . | . . . . . . . . Retrieved Matter . | . . . . . . . . Parts Self-Destructed . | . . . . . . . . Prevented . | . . . . . . . . Kills | -11 -10 -10 -10 -9 -8 -7 -7 ------- Run | Jun Mat Min Exi Min Mat Fac Low Combat Hostiles Destroyed 112 | . 9 6 . 17 25 55 . Guns 53 | . 9 2 . 8 15 19 . Cannons 1 | . . . . . 1 . . AOE 51 | . . 4 . 9 9 29 . Classes Destroyed 16 | . 4 2 . 1 4 5 . Worker 5 | . 1 . . . . 4 . Builder 4 | . . . . . 2 2 . Tunneler 3 | . . . . 1 . 2 . Recycler 2 | . 1 . . . . 1 . Mechanic 2 | . . . . . . 2 . Operator 1 | . . 1 . . . . . Watcher 6 | . 2 . . . 1 3 . Swarmer 32 | . . 3 . 17 8 4 . Grunt 47 | . 9 3 . . 7 28 . Brawler 3 | . . . . . . 3 . Duelist 3 | . . . . . . 3 . Protector 1 | . . . . . . 1 . Sentry 13 | . . . . . 7 6 . Specialist 2 | . . . . . 2 . . Hunter 7 | . . . . . 1 6 . Programmer 4 | . . . . . . 4 . Best Kill Streak 8 | . 3 3 . 4 6 8 . Combat Bots Only 6 | . 2 3 . 4 5 6 . Max Kills in Single Turn 6 | . 1 4 . 3 4 6 . Gunslinging . | . . . . . . . . Exploded 5 | . . 3 . 3 3 5 . Melee . | . . . . . . . . Uniques/NPCs Destroyed . | . . . . . . . . Combat | -11 -10 -10 -10 -9 -8 -7 -7 -------- Run | Jun Mat Min Exi Min Mat Fac Low Damage Taken 7753 | . 723 301 . 375 1570 4784 . Core 1051 | . 63 56 . 41 200 691 . Absorbed by Shields 244 | . . . . . . 244 . Redirected to Shielding 486 | . 9 12 . 5 19 441 . Regen/Repaired (Parts) 225 | . . . . . 225 . . Core Remaining (%) 66 | 100 . . . 36 63 . . Volleys Fired 288 | . 39 13 . 21 69 146 . Largest 2 | . 2 2 . 2 2 2 . Hottest 160 | . 60 40 . 50 138 160 . Shots Fired 514 | . 77 22 . 36 120 259 . Gun 462 | . 77 18 . 29 104 234 . Cannon 7 | . . . . . 7 . . Launcher 45 | . . 4 . 7 9 25 . Special . | . . . . . . . . Kinetic 114 | . 45 18 . 29 22 . . Thermal 255 | . 24 . . . 82 149 . Explosive 45 | . . 4 . 7 9 25 . Electromagnetic 100 | . 8 . . . 7 85 . Robot Hit Streak 26 | . 11 10 . 7 17 26 . Robot Miss Streak 5 | . 4 1 . 3 5 5 . Penetration Max . | . . . . . . . . Secondary Targets 8 | . 1 . . 2 2 3 . Max Gunslinging Chain 1 | . 1 . . 1 1 1 . Shots Hit Robots 388 | . 56 17 . 20 86 209 . Core Hits 247 | . 25 12 . 17 52 141 . Critical Kills 1 | . 1 . . . . . . Critical Parts Destroyed 4 | . . . . . . 4 . Critical Strikes 16 | . 1 . . . 4 11 . Burn 11 | . . . . . 4 7 . Destroy 1 | . 1 . . . . . . Smash 4 | . . . . . . 4 . Melee Attacks 44 | . . . . . . 44 . Impact 44 | . . . . . . 44 . Slashing . | . . . . . . . . Piercing . | . . . . . . . . Sneak Attacks 1 | . . . . . . 1 . Combat Hostiles . | . . . . . . . . Follow-up Attacks . | . . . . . . . . Damage Inflicted 12377 | 2 829 550 . 677 2411 7908 . Guns 6012 | . 770 196 . 234 1316 3496 . Cannons 160 | . . . . . 160 . . Explosions 5731 | . 42 346 . 425 935 3983 . Melee 429 | . . . . . . 429 . Ramming 45 | 2 17 8 . 18 . . . Kinetic 1097 | . 456 196 . 234 211 . . Thermal 4656 | . 249 82 . . 1105 3220 . Explosive 5078 | . . 264 . 425 935 3454 . Electromagnetic 1072 | . 107 . . . 160 805 . Impact 429 | . . . . . . 429 . Slashing . | . . . . . . . . Piercing . | . . . . . . . . Highest Corruption 12 | . 1 1 1 1 . 12 8 Average Corruption 4 | . 1 1 1 1 . 7 8 Corruption Purged 5 | . . . . . . 5 . Corruption Blocked . | . . . . . . . . Effects 143 | . 6 8 . 7 . 118 4 Message Errors 40 | . 1 2 . 1 . 36 . Matter Fused 36 | . 1 4 . 2 . 26 3 Heat Flow Errors 14 | . 2 1 . . . 11 . Energy Discharges 21 | . 1 . . 2 . 17 1 Data Loss (minor) 13 | . . 1 . 2 . 10 . Data Loss (major) 3 | . 1 . . . . 2 . Misfires 6 | . . . . . . 6 . Alerts 3 | . . . . . . 3 . Misdirections 1 | . . . . . . 1 . Weapon Failures 6 | . . . . . . 6 . Overload Shots . | . . . . . . . . Overflow Damage 428 | . 12 2 . 15 12 387 . Projectiles . | . . . . . . . . Explosions 191 | . 12 2 . 15 12 150 . Melee 237 | . . . . . . 237 . Knockbacks 3 | . . . . . . 3 . Impact 3 | . . . . . . 3 . Kinetic . | . . . . . . . . Secondary . | . . . . . . . . Self-Inflicted Damage 1076 | . 28 121 . 106 132 689 . Shots 27 | . 1 5 . 4 4 13 . Rammed 13 | 2 4 3 . 4 . . . Targets Rammed 14 | 2 5 3 . 4 . . . Kicked . | . . . . . . . . Crushed 1 | . 1 . . . . . . Highest Temperature 445 | . 164 213 . . 327 445 . Average Temperature 98 | . 59 60 . . 63 121 . Received Heat Transfer 1977 | . 393 72 . 18 441 1053 . Effects 5 | . . . . . . 5 . Energy Bleed 2 | . . . . . . 2 . Interference 1 | . . . . . . 1 . Matter Decay 1 | . . . . . . 1 . Damage (minor) 1 | . . . . . . 1 . Siege Activations . | . . . . . . . . Robots Corrupted 3 | . . . . . . 3 . Combat Hostiles 2 | . . . . . . 2 . Parts Fried 4 | . . . . . 2 2 . Impact Corruptions 10 | . . . . . . 10 . Robots Melted 4 | . . . . . . 4 . Combat Hostiles 4 | . . . . . . 4 . Parts Melted 24 | . . . . . 4 20 . Heat Transferred 9359 | . 500 100 . . 2553 6206 . Parts Sabotaged . | . . . . . . . . Parts Stolen . | . . . . . . . . Parts Stripped . | . . . . . . . . Power Chain Reactions 3 | . 1 . . . . 2 . Missiles Intercepted . | . . . . . . . . Alert | -11 -10 -10 -10 -9 -8 -7 -7 ------- Run | Jun Mat Min Exi Min Mat Fac Low Peak Influence 1849 | . 173 254 . 398 426 1849 . Initial 183 | . . 22 . . 26 183 . Average 432 | . 51 148 . 180 220 763 . Maximum Alert Level 5 | . . 1 . 1 2 5 . Low Security (%) 38 | 100 100 55 . 78 48 3 . Level 1 32 | . . 44 . 21 41 37 . Level 2 10 | . . . . . 9 19 . Level 3 2 | . . . . . . 5 . Level 4 8 | . . . . . . 20 . Level 5 6 | . . . . . . 13 . High Security . | . . . . . . . . Max Security . | . . . . . . . . Squads Dispatched 29 | . 1 . . . 1 27 . Investigation 5 | . 1 . . . . 4 . Extermination 7 | . . . . . . 7 . Reinforcement 6 | . . . . . 1 5 . Assault 5 | . . . . . . 5 . Garrison 6 | . . . . . . 6 . Intercept . | . . . . . . . . Searches Triggered . | . . . . . . . . Construction Impeded 1 | . . . . . . 1 . Haulers Reinforced 1 | . . . . . . 1 . Active Scanning Responses . | . . . . . . . . Cargo Convoy Interrupts . | . . . . . . . . Stealth | -11 -10 -10 -10 -9 -8 -7 -7 --------- Run | Jun Mat Min Exi Min Mat Fac Low Distress Signals 9 | . 2 . . . 5 2 . Communications Jammed . | . . . . . . . . Distress Signals . | . . . . . . . . Times Spotted 181 | . 15 7 . 21 40 96 2 Peak Tracking Total 7 | . 3 3 . 4 5 7 . Tactical Retreats 12 | . 1 . . 1 3 7 . Traps | -11 -10 -10 -10 -9 -8 -7 -7 ------- Run | Jun Mat Min Exi Min Mat Fac Low Traps Triggered 9 | . 4 . . . . 5 . Indirectly . | . . . . . . . . Trap Hack Attempts . | . . . . . . . . Triggered . | . . . . . . . . Disarmed . | . . . . . . . . Reprogrammed . | . . . . . . . . Reused . | . . . . . . . . Traps Extracted . | . . . . . . . . Installed . | . . . . . . . . Triggered . | . . . . . . . . Machines | -11 -10 -10 -10 -9 -8 -7 -7 ---------- Run | Jun Mat Min Exi Min Mat Fac Low Machines Disabled 31 | . . 4 . 1 3 23 . Max in Single Turn 12 | . . 4 . 1 1 12 . Garrison Access 3 | . . . . . 1 2 . Machines Repaired . | . . . . . . . . Machines Sabotaged . | . . . . . . . . Overloaded Fab Kills . | . . . . . . . . Hacking | -11 -10 -10 -10 -9 -8 -7 -7 --------- Run | Jun Mat Min Exi Min Mat Fac Low Machines Accessed 28 | . 6 . 1 2 11 8 . Terminals 16 | . 6 . . 1 8 1 . Fabricators . | . . . . . . . . Repair Stations 3 | . . . . . 1 2 . Recycling Units . | . . . . . . . . Scanalyzers 3 | . . . . . 1 2 . Garrison Access 4 | . . . . . 1 3 . Total Hacks 79 | . 19 . 1 6 32 21 . Successful 37 | . 5 . 1 4 15 12 . Failed 41 | . 14 . . 2 16 9 . Catastrophic 7 | . 1 . . . 3 3 . Database Lockouts 1 | . . . . . 1 . . Manual 50 | . 16 . . 5 24 5 . Terminals 51 | . 19 . . 5 24 3 . Fabricators . | . . . . . . . . Repair Stations 7 | . . . . . 4 3 . Recycling Units . | . . . . . . . . Scanalyzers 13 | . . . . . 3 10 . Garrison Access 6 | . . . . . 1 5 . Terminal Hacks 12 | . 3 . 1 4 4 . . Record 1 | . . . 1 . . . . Part Schematic 1 | . . . . 1 . . . Robot Analysis 7 | . 3 . . 2 2 . . Open Door 1 | . . . . 1 . . . Terminal Index 1 | . . . . . 1 . . Alert Level 1 | . . . . . 1 . . Fabricator Hacks . | . . . . . . . . Repair Station Hacks 4 | . . . . . 3 1 . Scan Component 3 | . . . . . 2 1 . Repair 1 | . . . . . 1 . . Recycling Unit Hacks . | . . . . . . . . Scanalyzer 10 | . . . . . 1 9 . Insert Component 6 | . . . . . 1 5 . Analyze 4 | . . . . . . 4 . Garrison Access Hacks 2 | . . . . . 1 1 . Seal Access 2 | . . . . . 1 1 . Unauthorized Hacks 9 | . 2 . . . 6 1 . Terminals 8 | . 2 . . . 6 . . Assimilate 1 | . 1 . . . . . . Botnet 5 | . . . . . 5 . . Operators 2 | . 1 . . . 1 . . Fabricators . | . . . . . . . . Repair Stations . | . . . . . . . . Recycling Units . | . . . . . . . . Scanalyzers . | . . . . . . . . Garrison Access 1 | . . . . . . 1 . Jam 1 | . . . . . . 1 . Data Cores Recovered . | . . . . . . . . Used . | . . . . . . . . Hacking Detections 23 | . 6 . . 1 10 6 . Full Trace Events 1 | . . . . . . 1 . Feedback Events . | . . . . . . . . Feedback Blocked . | . . . . . . . . Robot Schematics Acquired . | . . . . . . . . Robots Built . | . . . . . . . . Authchips . | . . . . . . . . Time . | . . . . . . . . Total Robot Build Rating . | . . . . . . . . Part Schematics Acquired 5 | . . . . 1 . 4 . Parts Built . | . . . . . . . . Authchips . | . . . . . . . . Time . | . . . . . . . . Total Part Build Rating . | . . . . . . . . Parts Repaired 1 | . . . . . 1 . . Time 38 | . . . . . 38 . . Parts Recycled . | . . . . . . . . Recycled Matter . | . . . . . . . . Retrieved Matter . | . . . . . . . . Retrieved Components . | . . . . . . . . Parts Scanalyzed 5 | . . . . . 1 4 . Part Schematics Acquired 4 | . . . . . . 4 . Parts Damaged . | . . . . . . . . Bothacking | -11 -10 -10 -10 -9 -8 -7 -7 ------------ Run | Jun Mat Min Exi Min Mat Fac Low Used RIF Installer . | . . . . . . . . Robots Hacked . | . . . . . . . . Non-combat . | . . . . . . . . Combat . | . . . . . . . . Robot Hacks Applied . | . . . . . . . . Relay Couplers Released . | . . . . . . . . Fabnet Peak Effective % . | . . . . . . . . Robots Rewired 2 | . . . . . . 2 . Allies Hacked . | . . . . . . . . Hacks Repelled . | . . . . . . . . Allies | -11 -10 -10 -10 -9 -8 -7 -7 -------- Run | Jun Mat Min Exi Min Mat Fac Low Total Allies 6 | . 1 . . 3 . 2 . Largest Group 3 | . 1 1 . 3 2 1 . Highest-Rated Group 40 | . 10 10 . 40 32 40 . Highest-Rated Ally 40 | . 10 10 . 16 16 40 . Total Orders 5 | . . . . . 1 4 . STAY 2 | . . . . . . 2 . FOLLOW 2 | . . . . . . 2 . RETURN 1 | . . . . . 1 . . Ally Attacks 30 | . . . . 17 4 9 . Total Damage 648 | . . . . 161 30 457 . Kills 6 | . . . . 3 1 2 . Allies Corrupted . | . . . . . . . . Allies Melted . | . . . . . . . . Intel | -11 -10 -10 -10 -9 -8 -7 -7 ------- Run | Jun Mat Min Exi Min Mat Fac Low Robot Analysis Total 7 | . 3 . . 2 2 . . Derelict Logs Recovered 2 | . . 1 . 1 . . . Drone Launches 1 | . . . . . 1 . . Drone Recoveries 1 | . . . . . 1 . . Exploration | -11 -10 -10 -10 -9 -8 -7 -7 ------------- Run | Jun Mat Min Exi Min Mat Fac Low Turns Passed 10195 | 101 1034 776 288 1254 2237 4379 126 Spaces Moved 5144 | 55 541 450 180 713 1081 2046 78 Core 8 | 7 . . . 1 . . . Treads 2045 | 48 497 450 180 595 275 . . Legs . | . . . . . . . . Wheels 3091 | . 44 . . 117 806 2046 78 Hover . | . . . . . . . . Flight . | . . . . . . . . Fastest Speed 50 | 50 90 160 160 90 115 140 160 Average Speed 163 | 155 155 160 160 162 167 165 160 Slowest Speed 450 | 200 160 160 160 450 400 245 160 Overloaded Moves . | . . . . . . . . Propulsion Burnouts . | . . . . . . . . Robots Hopped . | . . . . . . . . Cave-ins Triggered . | . . . . . . . . Exploration Rate (%) 63 | 4 93 90 55 100 87 64 12 Regions Visited 7 Branch Regions 4 Pre-discovered Areas 3 | . . 1 1 1 . . . Known Exits Taken 3 | . . . . 1 1 1 . Unknown Exits Taken 4 | 1 1 1 1 . . . . Scrap Searched 4 | . . 2 . 2 . . . Spaces Dug 36 | . . . . . . 36 . Terrain Destroyed 436 | . . 35 . 52 60 289 . Melee 22 | . . . . . . 22 . Projectile . | . . . . . . . . AOE 414 | . . 35 . 52 60 267 . Terrain Rammed . | . . . . . . . . Walls Destroyed . | . . . . . . . . Machines Disabled . | . . . . . . . . Actions | -11 -10 -10 -10 -9 -8 -7 -7 --------- Run | Jun Mat Min Exi Min Mat Fac Low Total 6316 | 67 655 480 181 770 1381 2703 79 Wait 473 | 1 34 8 . 2 132 296 . Move 5138 | 55 540 449 179 712 1080 2045 78 Hop . | . . . . . . . . Pick Up 91 | 4 14 3 1 8 23 38 . Fast Attach 54 | 6 5 . . 5 19 19 . Attach 55 | . 10 . . 3 13 28 1 Detach 10 | . 3 . . . 5 2 . Swap 70 | . 1 4 . 4 13 48 . Drop 63 | . 4 . 1 11 27 20 . Fire 288 | . 39 13 . 21 69 146 . Melee 44 | . . . . . . 44 . Ram . | . . . . . . . . Kick . | . . . . . . . . Crush 13 | 1 5 3 . 4 . . . Escape Stasis 12 | . . . . . . 12 . Rewire 5 | . . . . . . 5 . Trap . | . . . . . . . . Miscellaneous . | . . . . . . . . Route ------- -11/Junkyard -10/Materials (discovered 4 exits: [*Mat x3] / [*Min]) -10/Mines (discovered 2 exits: [*Mat] / *Exi) -10/Exiles -9/Mines (discovered 2 exits: *Mat x2) -8/Materials (discovered 2 exits: *Fac x2) -7/Factory (discovered 2 exits: *Fac / *Low) -7/Lower Caves History --------- Turn | Location | Event 2 | -11/Junkyard | Discovered new exit (range 16) 102 | -11/Junkyard | Entered Materials 315 | -10/Materials | Build established: Mutant 531 | -10/Materials | Discovered new exit (range 13) 836 | -10/Materials | Discovered new exit (range 10) 932 | -10/Materials | Discovered new exit (range 5) 1113 | -10/Materials | Discovered new exit (range 13) 1136 | -10/Materials | Entered Mines 1136 | -10/Mines | Accompanied by 1 ally 1141 | -10/Mines | Met a Derelict bent on vengeance 1332 | -10/Mines | A weapon hastily lodged in a ceiling crevice suddenly fell to the ground 1584 | -10/Mines | Found a damaged Exp. Sensor Array with a note attached 1587 | -10/Mines | Found Prototype Device 1590 | -10/Mines | Identified Exp. Sensor Array 1663 | -10/Mines | Discovered new exit (range 4) 1720 | -10/Mines | Assembled infested the area 1836 | -10/Mines | Discovered new exit (range 5) 1912 | -10/Mines | Entered Exiles 1952 | -10/Exiles | Met 8R-AWN 1980 | -10/Exiles | Met EX-HEX 2050 | -10/Exiles | Met EX-DEC 2127 | -10/Exiles | Learned location of Zion (-6) 2188 | -10/Exiles | Discovered new exit (range 10) 2200 | -10/Exiles | Entered Mines 2346 | -9/Mines | Core integrity fell below 50% 2607 | -9/Mines | Discovered new exit (range 14) 2649 | -9/Mines | Found the Drone Emporium 2665 | -9/Mines | Found Prototype Device 2757 | -9/Mines | Joined a pair of Derelicts in attacking an 0b10 outpost 3074 | -9/Mines | Build established: Scavenger-Mutant 3174 | -9/Mines | Identified exit to Materials 3181 | -9/Mines | Assisted by bots powering up and referring to "LRC-V3" 3211 | -9/Mines | Learned location of Storage (-9) 3454 | -9/Mines | Entered Materials 3454 | -8/Materials | Accompanied by 2 allies 3454 | -8/Materials | Evolved 4 slots: Utility x4 3454 | -8/Materials | Identified Bomb Drone Bay 3919 | -8/Materials | Discovered new exit (range 8) 4480 | -8/Materials | Central database locked down 4751 | -8/Materials | Build established: Mutant 4835 | -8/Materials | Discovered new exit (range 10) 4902 | -8/Materials | Repaired Hrd. Medium Armor Plating 5689 | -8/Materials | Identified exit to Factory 5691 | -8/Materials | Entered Factory 5691 | -7/Factory | Evolved 2 slots: Power x1, Utility x1 5734 | -7/Factory | Garrison activated, responded to threat 5818 | -7/Factory | Lost 5 parts (1p3u1w) 6813 | -7/Factory | Lost 3 parts (2p1w) 7149 | -7/Factory | Discovered new exit (range 6) 7157 | -7/Factory | Identified exit to Factory 7752 | -7/Factory | Lost 3 parts (1p1n1u) 8349 | -7/Factory | Garrison activated, responded to threat 8350 | -7/Factory | System corruption reached 10% 8359 | -7/Factory | Core integrity fell below 50% 8389 | -7/Factory | Lost 3 parts (1p1u1w) 8491 | -7/Factory | First assault squad dispatched 8525 | -7/Factory | Build established: Scavenger-Mutant 9222 | -7/Factory | Garrison activated, responded to threat 9409 | -7/Factory | Lost 3 parts (1n2u) 9467 | -7/Factory | Core integrity fell below 20% 9718 | -7/Factory | Build established: Mutant 10037 | -7/Factory | Discovered new exit (range 10) 10069 | -7/Factory | Identified exit to Lower Caves 10070 | -7/Factory | Entered Lower Caves 10196 | -7/Lower Caves | Self-destructed Last Messages --------------- 10046_ U-05 Engineer lays Concrete. 10054_ Y-54 Guardian destroyed. 10055_ K-01 Serf collects debris. 10062_ R-06 Scavenger collects Imp. Light Armor Plating. 10063_ K-01 Serf collects debris. 10065_ R-06 Scavenger collects Corrupted Lgt. Treads. 10065_ K-01 Serf collects debris. 10067_ KZYGZSX:12HQSXTA&3AKP 10143_ System corrupted: Energy discharge (-98). 10182_ System corrupted: Matter fused (-9). 10185_ Acquired 61 matter. Map ----- +----------------------------------------------------+ | ?????????????????????????????????????????????????? | | ?????????????????????????????????????????????????? | | ?????????????????????????????????????????????????? | | ?????????????????????????????????????????????????? | | ?????????????????????????????????????????????????? | | ?????????????????????????????????????????#???????? | | ?????????????????????????????????????????# ??????? | | ???????????????????? ????????????????# ??????? | | ?????????????????? ????????????????# ??????? | | ?????????????????? ??????#?????????# ??????? | | ??????????????????? g ??????# ????????? ??????? | | ??????????????????? ??????# ???????? ??????? | | ??????????????????? gg ???????# ####???? ?##???? | | ??????????????????? ???????# ???? # #???? | | ???????????????????? ????????? #??### #???? | | ???????????????????? ??????????# #### ##???? | | ???????????????????? ????????#??# #???? | | ????????????????????# ???????## ?# #### ##???? | | ????????????????????# ???????# ## #?# ##???? | | ????????????????????# #???????## #?# # #???? | | ????????????????????# #??????##" #### #???? | | ????????## ###??????# #?????## #### # #???? | | ???????## #??### ##????#""" #?# #???? | | ??????? ## ###??# "#" ### ##???? | | ??????? ##?##### #?# #????? | | ????????# @ ##????### ##?# #????? | | ?????????#### #### #??????#####??# #????? | | ????????????## ???## # # ##??###????????# #????? | | ??????????????????# #??# ######???# #????? | | ??????????????????### # #??# # ##### #????? | | ???????????????????# ##### # #????? | | ??????????????????## ## #????? | | ?????????????###### # # # #####????? | | ?????????????# # # # # # ##????????? | | ?????????????# # ##?????????? | | # ## ### ### # ###??????????? | | ?# #?## ###### ## #???????????? | | ?# #####??###????## ### #???????????? | | ?### #???????????????????#####?# #???????????? | | ????????????????????????????????# ##???????????? | | ????????????????????????????????#####????????????? | | ?????????????????????????????????????????????????? | | ?????????????????????????????????????????????????? | | ?????????????????????????????????????????????????? | | ?????????????????????????????????????????????????? | | ?????????????????????????????????????????????????? | | ?????????????????????????????????????????????????? | | ?????????????????????????????????????????????????? | | ?????????????????????????????????????????????????? | | ?????????????????????????????????????????????????? | +----------------------------------------------------+ Best States ------------- Heat Dissipation 75 Coolant Potential 65 Energy Generation 28 Energy Capacity 490 Matter Stores 300 Matter Capacity 300 Sight Range 16 Robot Scan Range 20 Terrain Scan Density 10 Armor Coverage 675 Resistance: EM 15 Core Shielding 20 Propulsion Shielding 66 Evasion (%) 42 Targeting Accuracy 6 Launcher Accuracy 20 Recoil Reduction 2 Item Schematics ----------------- Huge Storage Unit | -9/Mines | Hacked Exp. Sensor Array | -7/Factory | Scanalyzed Humpback | -7/Factory | Scanalyzed Lrg. Storage Unit | -7/Factory | Scanalyzed Imp. Propulsion Shielding | -7/Factory | Scanalyzed Robot Schematics ------------------ None Fabricated ------------ Nothing Alien Tech Used ----------------- None Achievements -------------- None Challenges ------------ None Game ------ Seed LaserForceJammer Manual? 0 Play Time 00:51:34 Cumulative 282.0 hours Start 2023.02.23 @ 15:31:33 End 2023.02.23 @ 18:45:34 Sessions 3 Manual Loads 0 Difficulty Rogue Special Mode None Game No. 413 Rogue 391 Adventurer 4 Explorer 18 Win Type - Total 11 Types 9/0/0/2/0/0/0/0/0 Lore% 70 Gallery% 89 Achievement% 73 Wizard Run 0 Options --------- ASCII 0 Keyboard 1 Movement Numpad Keybinds 0 Fullscreen 2 Font 18/SmallcapsGlow Map View 76x50 Tactical HUD 1 Map Filters NONE Filters NONE Steam 1 RUN: 824a68dc-a653-4015-9e18-2146839fd061